[Event "Titled Tuesday Blitz December 13 Late 2022"]
[White "Martinez Ramirez, Lennis"]
[Black "Lacasa Diaz, Jose Antonio"]
[WhiteFideId "3509079"]
[BlackFideId "2203375"]
[WhiteElo "2439"]
[BlackElo "2338"]
[Result "1-0"]
[Round "06"]
[TimeControl "180+1"]
[Date "2022.12.14"]
[WhiteClock "0:01:23"]
[BlackClock "0:00:02"]

1. d4 {[%clk 0:03:00]}  d5 {[%clk 0:02:58]} 2. c4 {[%clk 0:03:00]}  e6 {[%clk 0:02:59]} 3. Nf3 {[%clk 0:03:01]}  c5 {[%clk 0:02:59]} 4. e3 {[%clk 0:03:02]}  Nc6 {[%clk 0:02:57]} 5. Nc3 {[%clk 0:03:01]}  Nf6 {[%clk 0:02:58]} 6. a3 {[%clk 0:03:02]}  cxd4 {[%clk 0:02:52]} 7. exd4 {[%clk 0:03:02]}  Be7 {[%clk 0:02:52]} 8. c5 {[%clk 0:03:00]}  Ne4 {[%clk 0:02:52]} 9. Bf4 {[%clk 0:02:59]}  O-O {[%clk 0:02:39]} 10. Rc1 {[%clk 0:02:58]}  Nxc3 {[%clk 0:02:30]} 11. Rxc3 {[%clk 0:02:59]}  a5 {[%clk 0:02:29]} 12. Bb5 {[%clk 0:02:58]}  Bd7 {[%clk 0:02:29]} 13. O-O {[%clk 0:02:56]}  Bf6 {[%clk 0:02:19]} 14. Qd3 {[%clk 0:02:36]}  Nxd4 {[%clk 0:01:54]} 15. Nxd4 {[%clk 0:02:35]}  Bxd4 {[%clk 0:01:53]} 16. Qxd4 {[%clk 0:02:36]}  Bxb5 {[%clk 0:01:52]} 17. Rg3 {[%clk 0:02:36]}  f6 {[%clk 0:01:45]} 18. Bh6 {[%clk 0:02:36]}  Rf7 {[%clk 0:01:39]} 19. Qg4 {[%clk 0:02:35]}  Qd7 {[%clk 0:01:32]} 20. Re1 {[%clk 0:02:34]}  e5 {[%clk 0:01:31]} 21. Qh4 {[%clk 0:02:30]}  d4 {[%clk 0:01:24]} 22. Bd2 {[%clk 0:02:28]}  Re8 {[%clk 0:01:11]} 23. Rh3 {[%clk 0:02:28]}  g6 {[%clk 0:01:05]} 24. Bxa5 {[%clk 0:02:24]}  f5 {[%clk 0:00:56]} 25. Bd2 {[%clk 0:02:21]}  e4 {[%clk 0:00:55]} 26. Rb3 {[%clk 0:02:15]}  Bc6 {[%clk 0:00:54]} 27. Rg3 {[%clk 0:02:14]}  Qd5 {[%clk 0:00:38]} 28. b4 {[%clk 0:02:13]}  Qa2 {[%clk 0:00:21]} 29. Bg5 {[%clk 0:02:12]}  e3 {[%clk 0:00:17]} 30. fxe3 {[%clk 0:02:12]}  d3 {[%clk 0:00:17]} 31. Bf6 {[%clk 0:02:12]}  Rxf6 {[%clk 0:00:11]} 32. Qxf6 {[%clk 0:02:12]}  d2 {[%clk 0:00:09]} 33. Rf1 {[%clk 0:02:11]}  Qc2 {[%clk 0:00:07]} 34. Qd4 {[%clk 0:02:02]}  Ba4 {[%clk 0:00:01]} 35. Qd5+ {[%clk 0:01:37]}  Kg7 {[%clk 0:00:02]} 36. Qxb7+ {[%clk 0:01:35]}  Kg8 {[%clk 0:00:01]} 37. Qd5+ {[%clk 0:01:35]}  Kg7 {[%clk 0:00:02]} 38. Qb7+ {[%clk 0:01:22]}  Kg8 {[%clk 0:00:02]} 39. Rh3 {[%clk 0:01:23]} 1-0


[Site "https://www.chess.com"]

[Event "Titled Tuesday Blitz December 13 Late 2022"]
[White "Mendez Fortes, Eduardo Jesus"]
[Black "Abasov, Nijat"]
[WhiteFideId "3502376"]
[BlackFideId "13402960"]
[WhiteElo "2602"]
[BlackElo "2945"]
[Result "1-0"]
[Round "06"]
[TimeControl "180+1"]
[Date "2022.12.14"]
[WhiteClock "0:01:17"]
[BlackClock "0:00:09"]

1. e4 {[%clk 0:03:00]}  c5 {[%clk 0:02:59]} 2. Nf3 {[%clk 0:03:00]}  e6 {[%clk 0:03:00]} 3. d4 {[%clk 0:03:00]}  cxd4 {[%clk 0:03:01]} 4. Nxd4 {[%clk 0:03:01]}  Nc6 {[%clk 0:03:02]} 5. Nc3 {[%clk 0:03:01]}  Nf6 {[%clk 0:03:02]} 6. Ndb5 {[%clk 0:03:01]}  Bc5 {[%clk 0:03:03]} 7. Bf4 {[%clk 0:03:01]}  O-O {[%clk 0:03:03]} 8. Bc7 {[%clk 0:03:01]}  Qe7 {[%clk 0:03:04]} 9. Bd6 {[%clk 0:03:02]}  Bxd6 {[%clk 0:03:04]} 10. Qxd6 {[%clk 0:03:03]}  Qd8 {[%clk 0:03:05]} 11. Nc7 {[%clk 0:03:03]}  Rb8 {[%clk 0:03:04]} 12. Be2 {[%clk 0:03:04]}  b5 {[%clk 0:03:00]} 13. e5 {[%clk 0:03:04]}  b4 {[%clk 0:02:56]} 14. exf6 {[%clk 0:03:01]}  bxc3 {[%clk 0:02:47]} 15. fxg7 {[%clk 0:03:00]}  Kxg7 {[%clk 0:02:44]} 16. b3 {[%clk 0:03:00]}  Qf6 {[%clk 0:02:32]} 17. O-O {[%clk 0:02:43]}  Rb4 {[%clk 0:02:31]} 18. Nb5 {[%clk 0:02:28]}  Ba6 {[%clk 0:01:58]} 19. Nxc3 {[%clk 0:02:13]}  Qxc3 {[%clk 0:01:59]} 20. Bxa6 {[%clk 0:02:12]}  Rg4 {[%clk 0:01:43]} 21. Be2 {[%clk 0:01:58]}  Rd4 {[%clk 0:01:29]} 22. Qg3+ {[%clk 0:01:57]}  Qxg3 {[%clk 0:01:30]} 23. hxg3 {[%clk 0:01:58]}  Rd2 {[%clk 0:01:31]} 24. Bd3 {[%clk 0:01:57]}  Nb4 {[%clk 0:01:31]} 25. Rfd1 {[%clk 0:01:40]}  Rxd1+ {[%clk 0:01:31]} 26. Rxd1 {[%clk 0:01:41]}  Rc8 {[%clk 0:01:28]} 27. a3 {[%clk 0:01:32]}  Nxd3 {[%clk 0:01:28]} 28. Rxd3 {[%clk 0:01:30]}  Rxc2 {[%clk 0:01:28]} 29. Rxd7 {[%clk 0:01:31]}  Rc3 {[%clk 0:01:27]} 30. Rxa7 {[%clk 0:01:30]}  Rxb3 {[%clk 0:01:28]} 31. a4 {[%clk 0:01:30]}  Ra3 {[%clk 0:01:25]} 32. a5 {[%clk 0:01:31]}  h5 {[%clk 0:01:25]} 33. a6 {[%clk 0:01:31]}  e5 {[%clk 0:01:20]} 34. Ra8 {[%clk 0:01:29]}  Kf6 {[%clk 0:01:18]} 35. a7 {[%clk 0:01:29]}  Ra2 {[%clk 0:01:16]} 36. Kh2 {[%clk 0:01:29]}  Kf5 {[%clk 0:01:10]} 37. f3 {[%clk 0:01:25]}  Ra1 {[%clk 0:01:02]} 38. g4+ {[%clk 0:01:16]}  hxg4 {[%clk 0:01:03]} 39. fxg4+ {[%clk 0:01:17]}  Kf4 {[%clk 0:01:03]} 40. g5 {[%clk 0:01:17]}  e4 {[%clk 0:00:54]} 41. g6 {[%clk 0:01:17]}  e3 {[%clk 0:00:09]} 42. gxf7 {[%clk 0:01:17]} 1-0


[Site "https://www.chess.com"]

[Event "Titled Tuesday Blitz December 13 Late 2022"]
[White "Miller, Luke C"]
[Black "Han, Yichen"]
[WhiteFideId "2096935"]
[BlackFideId "1054430"]
[WhiteElo "2503"]
[BlackElo "2323"]
[Result "0-1"]
[Round "06"]
[TimeControl "180+1"]
[Date "2022.12.14"]
[WhiteClock "0:00:15"]
[BlackClock "0:00:51"]

1. e4 {[%clk 0:02:59]}  g6 {[%clk 0:03:00]} 2. d4 {[%clk 0:02:58]}  Bg7 {[%clk 0:03:00]} 3. Nc3 {[%clk 0:02:57]}  a6 {[%clk 0:03:00]} 4. h4 {[%clk 0:02:56]}  h5 {[%clk 0:02:59]} 5. Be3 {[%clk 0:02:55]}  b5 {[%clk 0:02:59]} 6. Qd2 {[%clk 0:02:52]}  Bb7 {[%clk 0:02:59]} 7. f3 {[%clk 0:02:35]}  d6 {[%clk 0:02:59]} 8. Nge2 {[%clk 0:02:24]}  Nd7 {[%clk 0:02:59]} 9. a3 {[%clk 0:02:24]}  Nb6 {[%clk 0:02:55]} 10. Nf4 {[%clk 0:02:22]}  Nf6 {[%clk 0:02:50]} 11. d5 {[%clk 0:02:14]}  Nfd7 {[%clk 0:02:46]} 12. Bd4 {[%clk 0:02:06]}  Ne5 {[%clk 0:02:32]} 13. Qf2 {[%clk 0:01:53]}  Rc8 {[%clk 0:02:19]} 14. g3 {[%clk 0:01:45]}  O-O {[%clk 0:01:52]} 15. Bh3 {[%clk 0:01:38]}  c5 {[%clk 0:01:37]} 16. dxc6 {[%clk 0:01:21]}  Rxc6 {[%clk 0:01:37]} 17. O-O-O {[%clk 0:01:08]}  Nbc4 {[%clk 0:01:30]} 18. Nfd5 {[%clk 0:01:02]}  e6 {[%clk 0:01:24]} 19. Nb4 {[%clk 0:00:58]}  Rc8 {[%clk 0:01:21]} 20. f4 {[%clk 0:00:56]}  Nc6 {[%clk 0:01:02]} 21. Bxg7 {[%clk 0:00:53]}  Kxg7 {[%clk 0:01:02]} 22. Nxc6 {[%clk 0:00:39]}  Rxc6 {[%clk 0:01:02]} 23. f5 {[%clk 0:00:37]}  Qf6 {[%clk 0:00:58]} 24. Rhf1 {[%clk 0:00:19]}  Nxb2 {[%clk 0:00:55]} 25. e5 {[%clk 0:00:15]}  Qxe5 {[%clk 0:00:52]} 26. f6+ {[%clk 0:00:15]}  Kh7 {[%clk 0:00:51]} 0-1


[Site "https://www.chess.com"]

[Event "Titled Tuesday Blitz December 13 Late 2022"]
[White "Mitrovic, Darko R"]
[Black "Clawitter, Craig"]
[WhiteFideId "927023"]
[BlackFideId "2023105"]
[WhiteElo "2150"]
[BlackElo "2205"]
[Result "0-1"]
[Round "06"]
[TimeControl "180+1"]
[Date "2022.12.14"]
[WhiteClock "0:00:01"]
[BlackClock "0:00:08"]

1. d4 {[%clk 0:02:50]}  e6 {[%clk 0:03:00]} 2. Nf3 {[%clk 0:02:50]}  Nf6 {[%clk 0:03:00]} 3. g3 {[%clk 0:02:50]}  d5 {[%clk 0:02:59]} 4. Bg2 {[%clk 0:02:51]}  Be7 {[%clk 0:03:00]} 5. O-O {[%clk 0:02:51]}  O-O {[%clk 0:03:01]} 6. c4 {[%clk 0:02:52]}  dxc4 {[%clk 0:03:01]} 7. Na3 {[%clk 0:02:45]}  c5 {[%clk 0:02:39]} 8. Nxc4 {[%clk 0:02:42]}  Nc6 {[%clk 0:02:40]} 9. dxc5 {[%clk 0:02:34]}  Bxc5 {[%clk 0:02:40]} 10. Be3 {[%clk 0:02:20]}  Bxe3 {[%clk 0:02:29]} 11. Nxe3 {[%clk 0:02:20]}  e5 {[%clk 0:02:27]} 12. Rc1 {[%clk 0:02:16]}  Qe7 {[%clk 0:02:20]} 13. Nh4 {[%clk 0:01:32]}  Rd8 {[%clk 0:02:12]} 14. Qc2 {[%clk 0:01:19]}  g6 {[%clk 0:02:07]} 15. Bxc6 {[%clk 0:01:13]}  bxc6 {[%clk 0:02:08]} 16. Nf3 {[%clk 0:01:08]}  e4 {[%clk 0:01:52]} 17. Nd2 {[%clk 0:01:02]}  Rb8 {[%clk 0:01:30]} 18. b3 {[%clk 0:00:48]}  h5 {[%clk 0:01:27]} 19. Rfd1 {[%clk 0:00:37]}  h4 {[%clk 0:01:08]} 20. Ndc4 {[%clk 0:00:36]}  Nd5 {[%clk 0:00:20]} 21. Rd4 {[%clk 0:00:15]}  Nxe3 {[%clk 0:00:14]} 22. Rxd8+ {[%clk 0:00:14]}  Qxd8 {[%clk 0:00:14]} 23. Nxe3 {[%clk 0:00:14]}  hxg3 {[%clk 0:00:13]} 24. hxg3 {[%clk 0:00:14]}  Ba6 {[%clk 0:00:12]} 25. Rd1 {[%clk 0:00:12]}  Qf6 {[%clk 0:00:10]} 26. Qxe4 {[%clk 0:00:09]}  Rd8 {[%clk 0:00:09]} 27. Rxd8+ {[%clk 0:00:09]}  Qxd8 {[%clk 0:00:09]} 28. Qxc6 {[%clk 0:00:08]}  Bxe2 {[%clk 0:00:10]} 29. Kg2 {[%clk 0:00:08]}  Bd3 {[%clk 0:00:10]} 30. Kg1 {[%clk 0:00:04]}  Qd4 {[%clk 0:00:09]} 31. Qd5 {[%clk 0:00:02]}  Qa1+ {[%clk 0:00:09]} 32. Kg2 {[%clk 0:00:01]}  Bf5 {[%clk 0:00:08]} 0-1


[Site "https://www.chess.com"]

[Event "Titled Tuesday Blitz December 13 Late 2022"]
[White "Nasuta, Grzegorz"]
[Black "Sjugirov, Sanan"]
[WhiteFideId "1141686"]
[BlackFideId "4189302"]
[WhiteElo "2441"]
[BlackElo "2613"]
[Result "0-1"]
[Round "06"]
[TimeControl "180+1"]
[Date "2022.12.13"]
[WhiteClock "0:00:01"]
[BlackClock "0:00:06"]

1. e4 {[%clk 0:03:00]}  c5 {[%clk 0:02:59]} 2. Nf3 {[%clk 0:03:01]}  d6 {[%clk 0:02:58]} 3. d4 {[%clk 0:03:01]}  cxd4 {[%clk 0:02:59]} 4. Nxd4 {[%clk 0:03:02]}  Nf6 {[%clk 0:03:00]} 5. Nc3 {[%clk 0:03:03]}  a6 {[%clk 0:03:00]} 6. Be2 {[%clk 0:03:03]}  e5 {[%clk 0:03:00]} 7. Nb3 {[%clk 0:03:03]}  Be7 {[%clk 0:03:01]} 8. Be3 {[%clk 0:03:03]}  Be6 {[%clk 0:03:01]} 9. Nd5 {[%clk 0:03:02]}  Nbd7 {[%clk 0:03:00]} 10. Qd3 {[%clk 0:03:02]}  Bxd5 {[%clk 0:02:51]} 11. exd5 {[%clk 0:03:03]}  Rc8 {[%clk 0:02:52]} 12. c4 {[%clk 0:02:45]}  O-O {[%clk 0:02:46]} 13. O-O {[%clk 0:02:45]}  a5 {[%clk 0:02:41]} 14. Rae1 {[%clk 0:02:43]}  b6 {[%clk 0:02:37]} 15. Kh1 {[%clk 0:02:42]}  Nc5 {[%clk 0:02:21]} 16. Nxc5 {[%clk 0:02:28]}  dxc5 {[%clk 0:02:04]} 17. Bf3 {[%clk 0:01:43]}  Bd6 {[%clk 0:01:56]} 18. Bg5 {[%clk 0:01:43]}  h6 {[%clk 0:01:56]} 19. Bh4 {[%clk 0:01:43]}  Re8 {[%clk 0:01:49]} 20. Qb1 {[%clk 0:01:04]}  g6 {[%clk 0:01:45]} 21. Bd1 {[%clk 0:01:03]}  Kg7 {[%clk 0:01:43]} 22. Ba4 {[%clk 0:01:03]}  Rf8 {[%clk 0:01:38]} 23. Qc2 {[%clk 0:00:57]}  Rc7 {[%clk 0:00:45]} 24. Qc3 {[%clk 0:00:55]}  g5 {[%clk 0:00:08]} 25. Bg3 {[%clk 0:00:56]}  Re7 {[%clk 0:00:07]} 26. Bxe5 {[%clk 0:00:51]}  Bxe5 {[%clk 0:00:06]} 27. Rxe5 {[%clk 0:00:51]}  Qd6 {[%clk 0:00:05]} 28. f4 {[%clk 0:00:26]}  gxf4 {[%clk 0:00:03]} 29. Rxe7 {[%clk 0:00:23]}  Qxe7 {[%clk 0:00:04]} 30. Rxf4 {[%clk 0:00:23]}  Qd6 {[%clk 0:00:03]} 31. Rf1 {[%clk 0:00:21]}  Rg8 {[%clk 0:00:02]} 32. g3 {[%clk 0:00:13]}  Rf8 {[%clk 0:00:02]} 33. Rf5 {[%clk 0:00:12]}  Rg8 {[%clk 0:00:02]} 34. Kg2 {[%clk 0:00:11]}  Rd8 {[%clk 0:00:02]} 35. h3 {[%clk 0:00:07]}  Qe7 {[%clk 0:00:02]} 36. Qe5 {[%clk 0:00:06]}  Qxe5 {[%clk 0:00:02]} 37. Rxe5 {[%clk 0:00:07]}  Kf8 {[%clk 0:00:02]} 38. Kf3 {[%clk 0:00:06]}  Ng8 {[%clk 0:00:02]} 39. g4 {[%clk 0:00:05]}  Ne7 {[%clk 0:00:02]} 40. Re1 {[%clk 0:00:04]}  Nc8 {[%clk 0:00:03]} 41. Bc6 {[%clk 0:00:03]}  Nd6 {[%clk 0:00:03]} 42. b3 {[%clk 0:00:04]}  Rb8 {[%clk 0:00:03]} 43. Kf4 {[%clk 0:00:03]}  Rd8 {[%clk 0:00:02]} 44. Ke5 {[%clk 0:00:02]}  Ke7 {[%clk 0:00:02]} 45. Kf4+ {[%clk 0:00:02]}  Kf6 {[%clk 0:00:03]} 46. h4 {[%clk 0:00:03]}  Nc8 {[%clk 0:00:02]} 47. g5+ {[%clk 0:00:03]}  hxg5+ {[%clk 0:00:03]} 48. hxg5+ {[%clk 0:00:03]}  Kg7 {[%clk 0:00:04]} 49. Kf5 {[%clk 0:00:03]}  Nd6+ {[%clk 0:00:04]} 50. Kf4 {[%clk 0:00:03]}  Nc8 {[%clk 0:00:04]} 51. Re8 {[%clk 0:00:03]}  Rxe8 {[%clk 0:00:04]} 52. Bxe8 {[%clk 0:00:04]}  Nd6 {[%clk 0:00:05]} 53. Bc6 {[%clk 0:00:04]}  Kf8 {[%clk 0:00:05]} 54. Ke5 {[%clk 0:00:04]}  Ke7 {[%clk 0:00:06]} 55. a3 {[%clk 0:00:03]}  Nc8 {[%clk 0:00:06]} 56. Bb7 {[%clk 0:00:02]}  Nd6 {[%clk 0:00:06]} 57. Ba6 {[%clk 0:00:03]}  Ne8 {[%clk 0:00:06]} 58. Bb5 {[%clk 0:00:02]}  Nd6 {[%clk 0:00:07]} 59. Bc6 {[%clk 0:00:03]}  Nc8 {[%clk 0:00:07]} 60. Ba4 {[%clk 0:00:02]}  Nd6 {[%clk 0:00:07]} 61. Bb5 {[%clk 0:00:03]}  Nc8 {[%clk 0:00:07]} 62. Bc6 {[%clk 0:00:03]}  Nd6 {[%clk 0:00:07]} 63. Kf4 {[%clk 0:00:04]}  Kf8 {[%clk 0:00:06]} 64. Kg4 {[%clk 0:00:04]}  Kg7 {[%clk 0:00:06]} 65. Kf4 {[%clk 0:00:04]}  f6 {[%clk 0:00:06]} 66. Bd7 {[%clk 0:00:03]}  Kg6 {[%clk 0:00:06]} 67. gxf6 {[%clk 0:00:03]}  Kxf6 {[%clk 0:00:07]} 68. Bg4 {[%clk 0:00:03]}  a4 {[%clk 0:00:06]} 69. bxa4 {[%clk 0:00:03]}  Nxc4 {[%clk 0:00:06]} 70. Be2 {[%clk 0:00:02]}  Nd6 {[%clk 0:00:06]} 71. Bd3 {[%clk 0:00:02]}  Ke7 {[%clk 0:00:05]} 72. Ke5 {[%clk 0:00:01]}  Nf7+ {[%clk 0:00:06]} 0-1


[Site "https://www.chess.com"]

[Event "Titled Tuesday Blitz December 13 Late 2022"]
[White "Osmonbekov, Talaibek"]
[Black "Adewumi, Tanitoluwa"]
[WhiteFideId "2017253"]
[BlackFideId "30966396"]
[WhiteElo "2135"]
[BlackElo "2481"]
[Result "1-0"]
[Round "06"]
[TimeControl "180+1"]
[Date "2022.12.14"]
[WhiteClock "0:01:35"]
[BlackClock "0:00:02"]

1. d4 {[%clk 0:03:00]}  Nf6 {[%clk 0:02:51]} 2. Bf4 {[%clk 0:03:01]}  g6 {[%clk 0:02:48]} 3. Nc3 {[%clk 0:03:01]}  Bg7 {[%clk 0:02:47]} 4. e4 {[%clk 0:03:02]}  d6 {[%clk 0:02:48]} 5. Qd2 {[%clk 0:03:02]}  O-O {[%clk 0:02:48]} 6. O-O-O {[%clk 0:03:02]}  Nc6 {[%clk 0:02:48]} 7. Nf3 {[%clk 0:03:00]}  Bg4 {[%clk 0:02:35]} 8. Qe3 {[%clk 0:03:00]}  Bxf3 {[%clk 0:02:31]} 9. gxf3 {[%clk 0:02:59]}  Nh5 {[%clk 0:02:19]} 10. Bg5 {[%clk 0:02:59]}  Qd7 {[%clk 0:02:03]} 11. h4 {[%clk 0:02:58]}  e5 {[%clk 0:01:48]} 12. dxe5 {[%clk 0:02:57]}  Nxe5 {[%clk 0:01:41]} 13. Bh3 {[%clk 0:02:56]}  Qe8 {[%clk 0:01:24]} 14. Nd5 {[%clk 0:02:39]}  Nc4 {[%clk 0:01:20]} 15. Qb3 {[%clk 0:02:34]}  Nxb2 {[%clk 0:01:11]} 16. Rdg1 {[%clk 0:02:11]}  Qe5 {[%clk 0:00:53]} 17. Bg4 {[%clk 0:02:07]}  c6 {[%clk 0:00:25]} 18. Ne7+ {[%clk 0:02:03]}  Kh8 {[%clk 0:00:25]} 19. Bxh5 {[%clk 0:02:04]}  gxh5 {[%clk 0:00:24]} 20. Nf5 {[%clk 0:01:56]}  Na4 {[%clk 0:00:03]} 21. Nxg7 {[%clk 0:01:43]}  Qxg7 {[%clk 0:00:02]} 22. Qxa4 {[%clk 0:01:42]}  h6 {[%clk 0:00:02]} 23. Be3 {[%clk 0:01:36]}  Qf6 {[%clk 0:00:02]} 24. Bd4 {[%clk 0:01:35]} 1-0


[Site "https://www.chess.com"]

[Event "Titled Tuesday Blitz December 13 Late 2022"]
[White "Ozates, Tuna"]
[Black "Shapiro, Daniel"]
[WhiteFideId "6354521"]
[BlackFideId "2001780"]
[WhiteElo "2151"]
[BlackElo "2367"]
[Result "1-0"]
[Round "06"]
[TimeControl "180+1"]
[Date "2022.12.14"]
[WhiteClock "0:00:08"]
[BlackClock "0:00:02"]

1. e4 {[%clk 0:03:00]}  e5 {[%clk 0:02:59]} 2. Nf3 {[%clk 0:03:00]}  Nc6 {[%clk 0:02:59]} 3. Bb5 {[%clk 0:03:00]}  a6 {[%clk 0:02:59]} 4. Ba4 {[%clk 0:03:00]}  Nf6 {[%clk 0:02:59]} 5. d3 {[%clk 0:03:01]}  b5 {[%clk 0:02:57]} 6. Bb3 {[%clk 0:03:01]}  Bb7 {[%clk 0:02:57]} 7. O-O {[%clk 0:03:01]}  Bd6 {[%clk 0:02:52]} 8. c3 {[%clk 0:03:01]}  h6 {[%clk 0:02:51]} 9. Nbd2 {[%clk 0:03:01]}  O-O {[%clk 0:02:50]} 10. Re1 {[%clk 0:03:01]}  Re8 {[%clk 0:02:50]} 11. Nf1 {[%clk 0:03:01]}  Bf8 {[%clk 0:02:51]} 12. Ng3 {[%clk 0:03:02]}  d5 {[%clk 0:02:50]} 13. Qe2 {[%clk 0:02:59]}  d4 {[%clk 0:02:39]} 14. Nh4 {[%clk 0:02:53]}  Na5 {[%clk 0:02:30]} 15. Bc2 {[%clk 0:02:51]}  c5 {[%clk 0:02:29]} 16. a3 {[%clk 0:02:50]}  Rc8 {[%clk 0:02:19]} 17. Nhf5 {[%clk 0:02:42]}  c4 {[%clk 0:02:11]} 18. Bd2 {[%clk 0:02:25]}  cxd3 {[%clk 0:02:03]} 19. Bxd3 {[%clk 0:02:24]}  Nc4 {[%clk 0:02:01]} 20. cxd4 {[%clk 0:02:12]}  Nxb2 {[%clk 0:01:51]} 21. d5 {[%clk 0:02:01]}  Nxd3 {[%clk 0:01:43]} 22. Qxd3 {[%clk 0:02:02]}  Bc5 {[%clk 0:01:33]} 23. Qf3 {[%clk 0:01:56]}  a5 {[%clk 0:01:07]} 24. Rab1 {[%clk 0:01:31]}  Ba6 {[%clk 0:00:57]} 25. Rec1 {[%clk 0:01:23]}  Bf8 {[%clk 0:00:47]} 26. Rxc8 {[%clk 0:01:21]}  Qxc8 {[%clk 0:00:15]} 27. Rc1 {[%clk 0:01:20]}  Qd8 {[%clk 0:00:14]} 28. Rc6 {[%clk 0:01:20]}  Bb7 {[%clk 0:00:12]} 29. Nxh6+ {[%clk 0:01:19]}  gxh6 {[%clk 0:00:11]} 30. Rxf6 {[%clk 0:01:18]}  b4 {[%clk 0:00:08]} 31. Nh5 {[%clk 0:00:50]}  Kh8 {[%clk 0:00:08]} 32. Bxh6 {[%clk 0:00:38]}  bxa3 {[%clk 0:00:07]} 33. Bxf8 {[%clk 0:00:33]}  a2 {[%clk 0:00:06]} 34. Rh6+ {[%clk 0:00:13]}  Kg8 {[%clk 0:00:06]} 35. Qg3+ {[%clk 0:00:09]}  Kxf8 {[%clk 0:00:06]} 36. Qa3+ {[%clk 0:00:09]}  Kg8 {[%clk 0:00:04]} 37. Qxa2 {[%clk 0:00:09]}  Qc7 {[%clk 0:00:03]} 38. Qd2 {[%clk 0:00:08]}  Rc8 {[%clk 0:00:02]} 39. Rh8+ {[%clk 0:00:08]} 1-0


[Site "https://www.chess.com"]

[Event "Titled Tuesday Blitz December 13 Late 2022"]
[White "Pace, Christopher"]
[Black "Suarez Uriel, Adrian"]
[WhiteFideId "2610167"]
[BlackFideId "22230874"]
[WhiteElo "2303"]
[BlackElo "2331"]
[Result "0-1"]
[Round "06"]
[TimeControl "180+1"]
[Date "2022.12.14"]
[WhiteClock "0:00:06"]
[BlackClock "0:00:59"]

1. e4 {[%clk 0:03:00]}  c5 {[%clk 0:02:59]} 2. Nf3 {[%clk 0:03:00]}  d6 {[%clk 0:02:59]} 3. d4 {[%clk 0:03:00]}  cxd4 {[%clk 0:03:00]} 4. Nxd4 {[%clk 0:03:01]}  Nf6 {[%clk 0:03:00]} 5. Nc3 {[%clk 0:03:01]}  a6 {[%clk 0:03:00]} 6. Bg5 {[%clk 0:02:59]}  e6 {[%clk 0:02:58]} 7. f4 {[%clk 0:02:51]}  Be7 {[%clk 0:02:58]} 8. Qf3 {[%clk 0:02:42]}  Qc7 {[%clk 0:02:58]} 9. O-O-O {[%clk 0:02:40]}  Nbd7 {[%clk 0:02:57]} 10. g4 {[%clk 0:02:03]}  h6 {[%clk 0:02:52]} 11. Bxf6 {[%clk 0:02:00]}  Bxf6 {[%clk 0:02:51]} 12. h4 {[%clk 0:02:00]}  Nb6 {[%clk 0:02:42]} 13. g5 {[%clk 0:01:56]}  Bxd4 {[%clk 0:02:42]} 14. Rxd4 {[%clk 0:01:55]}  Qc5 {[%clk 0:02:43]} 15. Rd2 {[%clk 0:01:38]}  Bd7 {[%clk 0:02:42]} 16. Bh3 {[%clk 0:00:53]}  O-O-O {[%clk 0:02:34]} 17. b3 {[%clk 0:00:43]}  Kb8 {[%clk 0:02:28]} 18. Rhd1 {[%clk 0:00:42]}  hxg5 {[%clk 0:02:26]} 19. hxg5 {[%clk 0:00:33]}  Bc6 {[%clk 0:02:23]} 20. Kb2 {[%clk 0:00:28]}  d5 {[%clk 0:02:23]} 21. exd5 {[%clk 0:00:24]}  Nxd5 {[%clk 0:02:23]} 22. Nxd5 {[%clk 0:00:22]}  Bxd5 {[%clk 0:02:24]} 23. Qg3 {[%clk 0:00:22]}  Rc8 {[%clk 0:02:01]} 24. c4 {[%clk 0:00:20]}  Bc6 {[%clk 0:01:54]} 25. f5+ {[%clk 0:00:21]}  Ka8 {[%clk 0:01:53]} 26. fxe6 {[%clk 0:00:20]}  fxe6 {[%clk 0:01:53]} 27. Bxe6 {[%clk 0:00:20]}  Rce8 {[%clk 0:01:54]} 28. Bd5 {[%clk 0:00:20]}  Re3 {[%clk 0:01:52]} 29. Qc7 {[%clk 0:00:16]}  Re7 {[%clk 0:01:47]} 30. Qg3 {[%clk 0:00:12]}  Re3 {[%clk 0:01:46]} 31. Qc7 {[%clk 0:00:13]}  Re7 {[%clk 0:01:18]} 32. Qg3 {[%clk 0:00:12]}  Bxd5 {[%clk 0:01:16]} 33. Rxd5 {[%clk 0:00:10]}  Qb6 {[%clk 0:01:07]} 34. c5 {[%clk 0:00:07]}  Qa5 {[%clk 0:01:02]} 35. Qd3 {[%clk 0:00:07]}  Rh2+ {[%clk 0:00:59]} 36. Rd2 {[%clk 0:00:08]}  Rxd2+ {[%clk 0:00:59]} 37. Qxd2 {[%clk 0:00:08]}  Qb5 {[%clk 0:00:59]} 38. Rd8+ {[%clk 0:00:07]}  Ka7 {[%clk 0:00:59]} 39. Qf2 {[%clk 0:00:06]}  Re2+ {[%clk 0:00:59]} 0-1


[Site "https://www.chess.com"]

[Event "Titled Tuesday Blitz December 13 Late 2022"]
[White "Pakleza, Zbigniew"]
[Black "Naroditsky, Daniel"]
[WhiteFideId "1119290"]
[BlackFideId "2026961"]
[WhiteElo "2410"]
[BlackElo "2628"]
[Result "0-1"]
[Round "06"]
[TimeControl "180+1"]
[Date "2022.12.13"]
[WhiteClock "0:00:11"]
[BlackClock "0:01:35"]

1. d4 {[%clk 0:03:00]}  Nf6 {[%clk 0:02:58]} 2. Nf3 {[%clk 0:03:01]}  g6 {[%clk 0:02:56]} 3. Bf4 {[%clk 0:03:01]}  Bg7 {[%clk 0:02:55]} 4. e3 {[%clk 0:03:02]}  d6 {[%clk 0:02:55]} 5. h3 {[%clk 0:03:02]}  O-O {[%clk 0:02:56]} 6. Be2 {[%clk 0:03:02]}  Nfd7 {[%clk 0:02:56]} 7. c4 {[%clk 0:02:58]}  e5 {[%clk 0:02:57]} 8. Bh2 {[%clk 0:02:59]}  Nc6 {[%clk 0:02:57]} 9. Nc3 {[%clk 0:02:59]}  f5 {[%clk 0:02:57]} 10. O-O {[%clk 0:02:59]}  e4 {[%clk 0:02:56]} 11. Nd2 {[%clk 0:02:59]}  Nf6 {[%clk 0:02:57]} 12. Re1 {[%clk 0:02:51]}  Ne7 {[%clk 0:02:56]} 13. b4 {[%clk 0:02:50]}  g5 {[%clk 0:02:56]} 14. f3 {[%clk 0:02:26]}  exf3 {[%clk 0:02:55]} 15. Bxf3 {[%clk 0:02:27]}  g4 {[%clk 0:02:54]} 16. Be2 {[%clk 0:02:19]}  Ng6 {[%clk 0:02:52]} 17. Bd3 {[%clk 0:01:52]}  gxh3 {[%clk 0:02:36]} 18. gxh3 {[%clk 0:01:53]}  f4 {[%clk 0:02:33]} 19. Bxg6 {[%clk 0:01:36]}  hxg6 {[%clk 0:02:24]} 20. Bxf4 {[%clk 0:01:34]}  Nh5 {[%clk 0:02:22]} 21. Qf3 {[%clk 0:00:53]}  Qh4 {[%clk 0:02:04]} 22. Ne2 {[%clk 0:00:45]}  Bxh3 {[%clk 0:01:56]} 23. Ne4 {[%clk 0:00:17]}  g5 {[%clk 0:01:47]} 24. Nf2 {[%clk 0:00:17]}  Be6 {[%clk 0:01:43]} 25. Qe4 {[%clk 0:00:17]}  Rae8 {[%clk 0:01:40]} 26. Bh2 {[%clk 0:00:12]}  Qxf2+ {[%clk 0:01:40]} 27. Kh1 {[%clk 0:00:12]}  Bxc4 {[%clk 0:01:36]} 28. Qg2 {[%clk 0:00:10]}  Qxg2+ {[%clk 0:01:34]} 29. Kxg2 {[%clk 0:00:11]}  Rxe3 {[%clk 0:01:35]} 0-1


[Site "https://www.chess.com"]